Cogmind - Beta 16 @@@ ROGUE MODE // 2025.11.14 @ 18:23:21 Player: Tape Result: Destroyed by P-80 Master with Gamma Rifle Performance ------------- Evolutions (6) 3000 Regions Visited (25) 5000 Robots Destroyed (287) 1435 Value Destroyed (9102) 9102 Prototype IDs (44) 880 Alien Tech Used (2) 400 Bonus (4382) 4382 TOTAL SCORE: 24199 Bonus ------- High Alert Combat Kills 343 Follower Combat Kills 1981 Registered with UFD 300 Met Optimus in HQ 500 Met Data Miner 300 Met Zhirov 300 Built Enhanced Grunts 300 Met R17 at Cetus 500 Friendly Fire -142 Cogmind --------- Core Integrity 0/1150 Matter 245/300 Energy 32/100 System Corruption 56% Temperature Cool (4) Movement Flying (32) Location -3/Proximity Caves Parts ------- > --- POWER (2) -------- (None) > --- PROPULSION (5) --- Cooled Nuclear Pulse Thruster Cooled Nuclear Pulse Thruster Cooled Nuclear Pulse Thruster > --- UTILITY (9) ------ (None) > --- WEAPON (3) ------- (None) > --- INVENTORY (5) ---- Centrium Heavy Treads Centrium Heavy Treads Peak State ------------ > --- POWER ------------ Particle Reactor Quantum Reactor > --- PROPULSION ------- Centrium Heavy Treads Overtuned Huge Scrapsphere > --- UTILITY ---------- Scrap Suit Improved Coolant Injector Huge Storage Unit Experimental Sensor Array Advanced Signal Interpreter Advanced Targeting Computer Core Analyzer Medium Regenerative Plating > --- WEAPON ----------- Advanced KE Penetrator Advanced KE Penetrator Advanced KE Penetrator > --- INVENTORY -------- Quantum Reactor Quantum Reactor Centrium Heavy Treads Centrium Heavy Treads Centrium Heavy Treads Advanced Heat Sink Advanced Energy Well High-capacity Matter Pod Deep Structural Scanner Advanced Terrain Scanner Improved Weapon Cycler Experimental Thermal Shield Quantum Rifle Advanced KE Penetrator Advanced KE Penetrator Heavy Proton Missile Launcher Advanced Datajack DRS Beacon [Rating: 129] Favorites ----------- Power Improved Ion Engine Engine Improved Ion Engine Power Core Neutrino Core Reactor Quantum Reactor Propulsion Light Treads Treads Light Treads Wheel Centrium Wheel Flight Unit Cooled Nuclear Pulse Thruster Utility Huge Storage Unit Device Seismic Detector Storage Huge Storage Unit Processor Advanced Targeting Computer Hackware Improved Hacking Suite Protection Hardened Light Armor Plating Weapon Enhanced Autogun Energy Gun Medium Laser Energy Cannon Heavy Plasma Cannon Ballistic Gun Enhanced Autogun Ballistic Cannon Improved Light Cannon Launcher Heavy Proton Missile Launcher Special Weapon Mining Laser Impact Weapon Great Maul Special Melee Weapon Datajack Build | -11 -10 -10 -9 -9 -8 -8 -8 -8 -6 -6 -6 -6 -5 -5 -5 -5 -5 -5 -4 -4 -4 -4 -4 -4 -3 ------- Run | Yrd Mat Min Mat Min Mat Sto Rec Scr Fac Low Low Dat Pro Fac Ext Cet Arc Hub Fac Was Fac Upp Upp Zhi Pro Slots Evolved 12 | . . . 2 . 2 . . . 4 . . . . 2 . . . . 2 . . . . . . Power 1 | . . . . . . . . . 1 . . . . . . . . . . . . . . . . Propulsion 3 | . . . 1 . . . . . 1 . . . . . . . . . 1 . . . . . . Utility 7 | . . . 1 . 1 . . . 2 . . . . 2 . . . . 1 . . . . . . Weapon 1 | . . . . . 1 . . . . . . . . . . . . . . . . . . . . Parts Attached 172 | 7 3 7 24 2 20 22 3 10 4 8 . 1 . 5 13 8 12 5 3 1 3 1 2 4 4 Power 19 | 1 . 1 2 . 2 1 . 1 1 1 . . . 2 . 2 1 . 1 . 1 1 . 1 . Engine 9 | 1 . 1 2 . 2 1 . . 1 1 . . . . . . . . . . . . . . . Core 4 | . . . . . . . . 1 . . . . . 2 . . . . . . . 1 . . . Reactor 6 | . . . . . . . . . . . . . . . . 2 1 . 1 . 1 . . 1 . Propulsion 48 | 2 . 3 7 . 7 7 3 2 1 3 . . . . 3 2 . . . . 2 . 2 . 4 Treads 39 | 2 . 3 6 . 7 7 3 2 1 3 . . . . 3 1 . . . . 1 . . . . Leg . | . . . . . . . . . . . . . . . . . . . . . . . . . . Wheel 5 | . . . . . . . . . . . . . . . . 1 . . . . 1 . 2 . 1 Hover . | . . . . . . . . . . . . . . . . . . . . . . . . . . Flight 4 | . . . 1 . . . . . . . . . . . . . . . . . . . . . 3 Utility 66 | 2 1 . 9 2 6 11 . 2 2 3 . 1 . 3 6 3 8 2 1 1 . . . 3 . Device 32 | 1 . . . 2 1 10 . 1 1 2 . . . 1 1 1 6 1 1 1 . . . 2 . Storage 6 | 1 1 . 2 . 1 . . . . . . . . . . 1 . . . . . . . . . Processor 9 | . . . . . 3 . . . 1 1 . 1 . 1 2 . . . . . . . . . . Hackware 3 | . . . . . . . . . . . . . . . . . 2 1 . . . . . . . Protection 16 | . . . 7 . 1 1 . 1 . . . . . 1 3 1 . . . . . . . 1 . Artifact . | . . . . . . . . . . . . . . . . . . . . . . . . . . Weapon 39 | 2 2 3 6 . 5 3 . 5 . 1 . . . . 4 1 3 3 1 . . . . . . Energy Gun 2 | . 1 . . . . . . . . . . . . . . . 1 . . . . . . . . Energy Cannon 4 | . . . . . . . . . . 1 . . . . 1 . 2 . . . . . . . . Ballistic Gun 17 | 2 . 2 1 . 1 2 . 3 . . . . . . 2 1 . 3 . . . . . . . Ballistic Cannon 9 | . . . 4 . 4 . . . . . . . . . . . . . 1 . . . . . . Launcher 4 | . 1 . 1 . . 1 . . . . . . . . 1 . . . . . . . . . . Special Weapon 1 | . . 1 . . . . . . . . . . . . . . . . . . . . . . . Impact Weapon 1 | . . . . . . . . 1 . . . . . . . . . . . . . . . . . Slashing Weapon . | . . . . . . . . . . . . . . . . . . . . . . . . . . Piercing Weapon . | . . . . . . . . . . . . . . . . . . . . . . . . . . Special Melee Weapon 1 | . . . . . . . . 1 . . . . . . . . . . . . . . . . . Unidentified Prototypes 18 | . . . 2 1 1 1 . . . . . . . . 1 3 2 1 . . . . . 5 1 Corrupted Parts 8 | . . . . . . . . . . . . . . . . 3 . 3 . . 2 . . . . System Corruption 58 | . . . . . . . . . . . . . . . . 23 . 26 . . 9 . . . . Parts Lost 42 | . . 3 4 . 9 1 . . . . . . . . 2 2 1 3 2 . 3 . . . 12 Power 6 | . . . . . 1 . . . . . . . . . . . 1 . 1 . 1 . . . 2 Propulsion 13 | . . 2 1 . 3 . . . . . . . . . 1 1 . . . . 1 . . . 4 Utility 11 | . . . 1 . 2 . . . . . . . . . . . . 1 1 . 1 . . . 5 Weapon 12 | . . 1 2 . 3 1 . . . . . . . . 1 1 . 2 . . . . . . 1 Highest Loss Streak 12 | . . 2 2 . 4 1 . . . . . . . . 2 1 1 3 2 . 2 . . . 12 To Critical Strikes 1 | . . . . . . . . . . . . . . . . 1 . . . . . . . . . Average Backups 20 | 2 14 19 21 24 24 23 23 21 20 20 20 20 19 21 21 20 20 20 18 19 19 17 15 17 19 Power 1 | . 1 2 2 3 2 1 1 . . . . . . 1 1 2 2 2 2 2 1 1 1 . . Propulsion 5 | . 5 6 6 5 5 8 7 6 5 5 5 5 5 5 5 5 6 3 3 3 5 5 3 3 5 Utility 7 | . 5 7 7 9 8 7 7 7 8 8 8 7 7 7 7 6 5 8 8 9 7 6 6 6 8 Weapon 6 | . 1 3 5 6 8 6 6 8 6 6 6 7 6 7 6 5 6 5 3 4 5 5 5 4 4 Tool/Special . | . . . . . . . . . . . . . . . . . . . . . . . . . . Unused Backups 41 | . . 2 7 1 5 3 . 3 2 . . . . 1 1 1 2 . . 1 . . . 1 11 Power 4 | . . . 1 . 2 . . . . . . . . . . . . . . . . . . 1 . Propulsion 12 | . . 1 3 . . 1 . 1 1 . . . . . 1 . 2 . . . . . . . 2 Utility 13 | . . 1 2 1 1 . . 2 1 . . . . . . . . . . . . . . . 5 Weapon 9 | . . . 1 . 2 2 . . . . . . . 1 . . . . . . . . . . 3 Tool/Special 3 | . . . . . . . . . . . . . . . . 1 . . . 1 . . . . 1 Average Slot Usage (%) 91 | . 99 99 96 99 99 99 98 76 93 99 99 100 99 93 94 95 77 81 77 71 76 82 84 74 58 Engine 7 | . 14 14 11 11 8 9 9 4 3 6 13 13 13 4 . . . . . . . . . . . Core 2 | . . . . . . . . 4 6 5 . . . 6 11 8 . . . . . 4 5 3 . Treads 24 | . 27 27 32 33 26 26 27 27 25 26 26 26 26 23 22 18 5 5 5 5 5 5 5 5 3 Wheel 1 | . . . . . . . . . . . . . . . . 1 5 5 5 5 9 10 13 15 12 Device 9 | . 14 14 7 10 1 3 9 5 9 13 13 10 13 11 11 15 10 11 14 19 19 19 16 17 14 Storage 8 | . 14 14 11 11 9 9 9 8 6 6 6 6 6 5 5 5 5 5 5 5 5 5 5 5 4 Processor 12 | . . . . . 16 18 18 18 17 20 20 22 20 17 17 17 17 17 14 10 10 10 10 10 9 Protection 4 | . . . 11 11 8 5 . 2 2 . . . . 4 5 5 2 . 5 5 5 5 5 6 3 Energy Gun 1 | . 11 12 1 . . . . . . . . . . . . . 3 4 . . . . . . . Ballistic Gun 10 | . 15 13 8 . . 18 25 2 15 17 19 20 18 12 16 11 8 . 13 12 10 14 14 2 2 Ballistic Cannon 4 | . . . 10 22 26 7 . . . . . . . . . . . . . 3 4 . . . . Peak Build Rating 129 | 7 9 11 18 25 31 33 33 35 49 56 60 61 60 75 76 109 120 122 129 115 128 125 125 121 115 Average Rating 42 | 5 8 10 15 17 26 29 31 26 44 54 58 59 59 71 69 83 104 120 126 114 125 124 119 105 84 On Entrance 63 | . 7 9 11 17 18 21 33 24 35 48 55 59 59 60 75 75 107 120 115 113 114 119 125 118 115 Avg Prop Armor Cover (%) 10 | . . . . . . . . 10 . . . . . . . 4 11 12 8 9 8 8 9 12 11 Naked Turns 3 | . . . . . . . . . . . . . . . . . . . . . . . . . 3 Heaviest Build 154 | 12 49 53 105 105 105 102 102 99 119 119 116 116 123 150 150 150 154 147 154 135 135 147 149 133 132 Greatest Support 86 | 40 40 40 60 60 65 62 60 60 80 80 80 80 80 80 86 86 80 20 80 20 80 80 48 48 48 Greatest Overweight (x) 7 | . 2 1 1 1 1 4 1 2 1 1 1 1 1 1 2 7 7 7 7 6 6 4 4 2 5 Average Overweight (x) 1 | . . 1 . 1 1 1 1 1 1 1 1 1 1 1 1 1 6 6 6 6 3 3 2 2 1 Largest Inventory Capacity 25 | 8 20 20 25 25 25 25 25 25 25 25 25 25 25 25 25 25 25 25 25 25 25 25 25 25 25 Average Capacity 23 | 7 16 20 21 25 25 25 25 24 25 25 25 25 25 25 25 25 25 25 25 25 25 25 25 25 22 Most Carried 25 | 4 20 20 25 25 25 25 25 25 25 25 25 25 24 25 25 25 25 25 25 25 25 21 20 25 25 Average Carried 22 | 2 14 19 21 24 24 23 24 23 24 24 24 24 23 24 24 24 24 24 22 24 24 20 18 20 22 Final Capacity 25 | 8 20 20 25 25 25 25 25 25 25 25 25 25 25 25 25 25 25 25 25 25 25 25 25 25 5 Final Carried 25 | 4 20 18 23 25 24 25 25 25 25 25 25 24 24 25 22 25 24 23 25 24 22 20 19 25 4 Scrap Suit Usage (%) 1 | . . . . . . . . . . . . . . . . 2 . . . . . . . . . Parts Cannibalized 1 | . . . . . . . . . . . . . . . . 1 . . . . . . . . . Class Distribution -------------------- 19% | Mutant 15% | Commander-Mutant 13% | Scavenger-Gunner 12% | Scavenger-Skirmisher 11% | Scavenger-Mutant 9% | Gunner 6% | Scavenger-Tank 6% | Commander-Gunner Dominant Class ---------------- Mutant | -10/Materials Scavenger-Mutant | -10/Mines Scavenger-Mutant | -9/Materials Mutant | -9/Mines Gunner | -8/Materials Gunner | -8/Storage Commander-Gunner | -8/Recycling Commander-Mutant | -8/Scraptown Scavenger-Assassin | -6/Factory Scavenger-Skirmisher | -6/Lower Caves Scavenger-Skirmisher | -6/Lower Caves Scavenger-Skirmisher | -6/Data Miner Scavenger-Skirmisher | -5/Proximity Caves Scavenger-Skirmisher | -5/Factory Commander-Tank | -5/Extension Scavenger-Gunner | -5/Cetus Scavenger-Gunner | -5/Archives Scavenger-Gunner | -5/Hub_04(d) Scavenger-Gunner | -4/Factory Scavenger-Tank | -4/Waste Scavenger-Skirmisher | -4/Factory Scavenger-Tank | -4/Upper Caves Scavenger-Tank | -4/Upper Caves Scavenger-Mutant | -4/Zhirov Mutant | -3/Proximity Caves Resources | -11 -10 -10 -9 -9 -8 -8 -8 -8 -6 -6 -6 -6 -5 -5 -5 -5 -5 -5 -4 -4 -4 -4 -4 -4 -3 ----------- Run | Yrd Mat Min Mat Min Mat Sto Rec Scr Fac Low Low Dat Pro Fac Ext Cet Arc Hub Fac Was Fac Upp Upp Zhi Pro Matter Collected 9848 | 310 333 383 791 370 1115 1204 594 110 262 502 85 . 266 167 1411 243 246 34 138 . 248 710 139 159 28 Remotely . | . . . . . . . . . . . . . . . . . . . . . . . . . . Salvage Created 11285 | 139 384 461 1471 55 1232 1086 891 311 189 500 32 . 313 188 1449 446 403 162 189 . 451 379 131 324 99 Parts 558 | 9 26 22 98 3 58 74 46 5 9 20 2 . 14 17 61 20 23 4 5 . 18 7 7 7 3 Haulers Intercepted 18 | . 1 . 6 . 4 6 . . . . . . . . . . . . 1 . . . . . . Recyclers Shooed 7 | . . . 1 . 1 3 1 . . . . . . 1 . . . . . . . . . . . Parts Field Recycled . | . . . . . . . . . . . . . . . . . . . . . . . . . . Retrieved Matter . | . . . . . . . . . . . . . . . . . . . . . . . . . . Parts Self-Destructed 52 | . . . . . . . . . . 12 1 . 20 . . . . . . . . 8 2 6 3 Prevented 6 | . . . . . . . . . . . . . . . . . . . . . . 6 . . . Parts Restored . | . . . . . . . . . . . . . . . . . . . . . . . . . . Kills | -11 -10 -10 -9 -9 -8 -8 -8 -8 -6 -6 -6 -6 -5 -5 -5 -5 -5 -5 -4 -4 -4 -4 -4 -4 -3 ------- Run | Yrd Mat Min Mat Min Mat Sto Rec Scr Fac Low Low Dat Pro Fac Ext Cet Arc Hub Fac Was Fac Upp Upp Zhi Pro Combat Hostiles Destroyed 194 | . 9 9 32 7 33 19 12 . 3 12 3 . 8 6 18 5 1 3 2 . 2 4 5 . 1 Melee 2 | . . . . . . . 1 . . . . . . . . . . . . . . . . . 1 Guns 90 | . 4 9 13 . . 11 11 . 3 7 . . 5 6 18 . . 1 . . 2 . . . . Cannons 49 | . . . 9 7 28 4 . . . . . . . . . . . 1 . . . . . . . AOE 42 | . 5 . 10 . 5 4 . . . 4 3 . 3 . . 1 . 1 2 . . . 4 . . Classes Destroyed 23 | 2 4 3 5 1 2 . 2 2 . 1 . . . . . . . . . . . 1 . . . Worker 12 | . . 1 4 2 3 1 . . . . . . . . . . . . . . 1 . . . . Builder 8 | . . . 2 . . . . . . . . . . . 3 . . . . . 3 . . . . Tunneler 4 | 3 . 1 . . . . . . . . . . . . . . . . . . . . . . . Hauler 20 | . 1 . 6 . 4 6 . 2 . . . . . . . . . . 1 . . . . . . Recycler 17 | 1 1 1 2 . 3 2 4 . . . . . . . 1 . . . . . 2 . . . . Mechanic 1 | . . . 1 . . . . . . . . . . . . . . . . . . . . . . Operator 14 | . . . 3 . . 1 . . . . . . . . 1 . 9 . . . . . . . . Drone 2 | . . . . . . . . 2 . . . . . . . . . . . . . . . . . Watcher 17 | . 2 . 3 . 4 2 . . . . . . . . 2 2 . . 1 . 1 . . . . Swarmer 51 | . 5 2 9 . 7 4 . . . 4 3 . 5 5 . . . . 2 . . . 5 . . Grunt 72 | . 4 4 13 1 15 8 1 2 1 2 . . 3 . 10 . . 3 . . 1 4 . . . Brawler 8 | . . . 3 . 1 . 1 . . . . . . . 2 . . . . . . . . . 1 Duelist 4 | . . . 1 . . . 1 1 . . . . . . 1 . . . . . . . . . . Protector 3 | . . . . . . . 3 . . . . . . . . . . . . . . . . . . Sentry 32 | . . 2 6 . 7 7 4 . 1 1 . . . . 3 . 1 . . . . . . . . Demolisher 3 | . . . . 2 . . . . . . . . . . 1 . . . . . . . . . . Specialist 2 | . . . . . 2 . . . . . . . . . . . . . . . . . . . . Hunter 3 | . . . . . 1 . . . . . . . . . 1 . . . . . 1 . . . . Programmer 5 | . . . . . . . 3 . 1 . . . . 1 . . . . . . . . . . . Cetus Guard 5 | . . . . . . . . . . . . . . . . 5 . . . . . . . . . Scientist 2 | . . . . . . . . 2 . . . . . . . . . . . . . . . . . Packrat 1 | . . . . . . . . . . . . . 1 . . . . . . . . . . . . Samaritan 1 | . . . . . . . . . . . . . . . . . . . . . . 1 . . . Thief 1 | . . . . . . . . . . 1 . . . . . . . . . . . . . . . Assembled 5 | . . 1 . 4 . . . . . . . . . . . . . . . . . . . . . Thug 1 | . . . . . . . . . . 1 . . . . . . . . . . . . . . . Savage 3 | . . . . . . . . . . 3 . . . . . . . . . . . . . . . Butcher 1 | . . . . . . . . . . . . . . . 1 . . . . . . . . . . Best Kill Streak 11 | 2 3 2 11 1 6 6 7 . 2 6 3 . 3 5 6 4 5 2 2 . 5 4 5 . 1 Combat Bots Only 9 | . 3 2 9 1 5 5 7 . 2 6 3 . 3 5 6 3 1 2 2 . 1 4 5 . 1 Max Kills in Single Turn 4 | 1 3 1 3 1 3 4 2 2 1 3 1 . 2 2 2 1 1 1 2 . 2 2 4 . 1 Gunslinging 1 | . . . . . . . . . . . . . 1 1 1 . . . . . . . . . . Exploded 4 | . 3 . 3 . 2 4 . . . 3 1 . 1 . . 1 . 1 2 . . . 4 . . Melee 1 | . . . . . . . 1 . . . . . . . . . . . . . . . . . 1 Uniques/NPCs Destroyed . | . . . . . . . . . . . . . . . . . . . . . . . . . . Combat | -11 -10 -10 -9 -9 -8 -8 -8 -8 -6 -6 -6 -6 -5 -5 -5 -5 -5 -5 -4 -4 -4 -4 -4 -4 -3 -------- Run | Yrd Mat Min Mat Min Mat Sto Rec Scr Fac Low Low Dat Pro Fac Ext Cet Arc Hub Fac Was Fac Upp Upp Zhi Pro Hostile Shots Fired 1086 | . 24 29 80 31 164 42 34 . 27 28 . . 15 11 70 47 3 96 59 . 77 8 25 17 199 Missed 303 | . 7 3 18 11 43 13 8 . 6 12 . . 4 4 20 19 1 16 16 . 16 2 6 8 70 Hits 783 | . 17 26 62 20 121 29 26 . 21 16 . . 11 7 50 28 2 80 43 . 61 6 19 9 129 Melee 21 | . . 5 7 3 . . . . . 2 . . . . 4 . . . . . . . . . . Projectile 762 | . 17 21 55 17 121 29 26 . 21 14 . . 11 7 46 28 2 80 43 . 61 6 19 9 129 AOE 8 | . . . . 3 . . . . . . . . . . 5 . . . . . . . . . . Critical Strikes 47 | . . 1 6 2 5 1 2 . . 1 . . . . 3 7 . . . . 6 . . . 13 Part Disruptions 3 | . . . . . . . . . . . . . . . . . . . . . 1 . . . 2 Damage Taken 14028 | . 227 465 1051 409 2040 442 386 . 170 166 . . 118 82 1131 588 147 1148 930 . 1144 195 174 60 2955 Core 1951 | . 48 48 129 63 254 36 15 . 32 20 . . 12 9 18 70 . 105 110 . 34 18 43 6 881 Absorbed by Shields 853 | . . . . . . . 16 . 75 65 . . 43 31 414 209 . . . . . . . . . Reduced by Siege Mode 16 | . . . . . . . . . . . . . . . . . . . . . 16 . . . . Regen/Repaired (Parts) 878 | . . . . . . 139 . . . . . . . . 96 138 1 . 20 69 118 232 44 . 21 Core Remaining (%) 71 | 100 . 61 . 52 . . . 44 . . . . 92 . . . . 79 . . . . . . . Volleys Fired 728 | 10 23 45 82 28 85 61 31 . 11 49 3 . 17 17 94 15 68 12 9 5 32 8 15 8 . Largest 3 | 2 2 2 2 2 3 3 3 . 3 3 1 . 3 3 3 3 1 3 3 1 3 3 3 1 . Hottest 265 | 40 70 100 73 66 99 99 75 . 75 90 39 . 90 90 140 83 94 265 121 51 121 105 105 35 . Shots Fired 1591 | 20 44 72 159 56 251 180 95 . 33 94 3 . 33 31 268 29 68 24 25 5 59 15 18 9 . Gun 1019 | 20 41 56 101 . . 127 95 . 33 68 . . 24 21 259 20 51 12 22 . 40 10 10 9 . Cannon 498 | . . . 49 56 249 52 . . . 22 . . 3 9 2 . 17 12 2 5 19 . 1 . . Launcher 58 | . 3 . 9 . 2 1 . . . 4 3 . 6 1 7 9 . . 1 . . 5 7 . . Special 16 | . . 16 . . . . . . . . . . . . . . . . . . . . . . . Kinetic 1338 | 20 30 29 134 56 249 179 95 . 33 68 . . 24 21 259 20 1 2 24 5 59 10 11 9 . Thermal 189 | . 11 43 16 . . . . . . 22 . . 3 9 2 . 67 16 . . . . . . . Explosive 32 | . 3 . 9 . 2 1 . . . 4 3 . 6 1 3 . . . . . . . . . . Electromagnetic 32 | . . . . . . . . . . . . . . . 4 9 . 6 1 . . 5 7 . . Robot Hit Streak 31 | 4 20 12 19 4 21 26 10 . 16 31 . . 7 6 18 15 17 8 5 . 6 3 . 3 . Robot Miss Streak 8 | 2 3 3 4 4 5 3 3 . 1 2 . . 4 1 8 1 5 1 1 . 7 2 4 1 . Penetration Max 1 | . . . . . . . . . . . . . . . 1 1 . 1 1 . 1 . . 1 . Secondary Targets 14 | . . . . . . 1 2 . . 2 . . 2 2 4 . . . . . 1 . . . . Max Gunslinging Chain 2 | . . . . . . 1 1 . . 1 . . 2 1 1 . . . . . 1 . . . . Shots Hit Robots 1015 | 12 30 38 110 25 164 122 68 11 24 60 . . 13 14 189 26 42 18 5 . 34 3 . 7 . Core Hits 507 | 7 21 19 68 10 69 48 28 2 8 26 4 . 15 9 93 18 20 8 5 . 15 3 5 5 1 Critical Kills 7 | . . . . . . . . 1 1 . . . . . . . 1 . 1 . 1 1 . 1 . Critical Parts Destroyed 14 | . . . . . . . . 2 1 2 . . . . . . . 2 1 . 5 . . 1 . Critical Strikes 42 | . 1 2 3 1 7 1 . 3 2 2 . . . . 1 . 1 2 2 . 11 1 . 2 . Burn 4 | . 1 2 1 . . . . . . . . . . . . . . . . . . . . . . Meltdown 1 | . . . . . . . . . . . . . . . . . 1 . . . . . . . . Destroy 16 | . . . . . . . . . 2 . . . . . 1 . . 2 2 . 6 1 . 2 . Blast 16 | . . . 2 1 7 1 . . . . . . . . . . . . . . 5 . . . . Smash 5 | . . . . . . . . 3 . 2 . . . . . . . . . . . . . . . Melee Attacks 20 | . . . . . . . . 11 4 5 . . . . . . . . . . . . . . . Impact 19 | . . . . . . . . 10 4 5 . . . . . . . . . . . . . . . Slashing . | . . . . . . . . . . . . . . . . . . . . . . . . . . Piercing . | . . . . . . . . . . . . . . . . . . . . . . . . . . Sneak Attacks 11 | . . . . . . . . 11 . . . . . . . . . . . . . . . . . Combat Hostiles . | . . . . . . . . . . . . . . . . . . . . . . . . . . Follow-up Attacks . | . . . . . . . . . . . . . . . . . . . . . . . . . . Damage Inflicted 26107 | 140 512 496 2801 560 3831 2542 1411 965 426 1423 291 . 842 286 3742 1280 1248 822 316 . 1125 483 293 229 43 Guns 13281 | 140 335 478 1099 . . 1504 1382 . 426 1022 . . 206 286 3691 355 1056 282 130 . 634 26 . 229 . Cannons 6690 | . . . 624 517 3559 767 . . . . . . 33 . 33 . 192 393 81 . 491 . . . . Explosions 4806 | . 173 . 1030 . 230 256 . . . 290 291 . 603 . 18 925 . 135 105 . . 457 293 . . Melee 1076 | . . . . . . . . 965 . 111 . . . . . . . . . . . . . . . Ramming 254 | . 4 18 48 43 42 15 29 . . . . . . . . . . 12 . . . . . . 43 Kinetic 17594 | 140 197 265 1607 517 3559 2271 1382 . 426 1022 . . 206 286 3691 355 . 79 211 . 1125 26 . 229 . Thermal 2378 | . 138 213 116 . . . . . . . . . 33 . 33 . 1248 537 . . . . 60 . . Explosive 2873 | . 173 . 1030 . 230 256 . . . 290 291 . 603 . . . . . . . . . . . . Electromagnetic 1932 | . . . . . . . . . . . . . . . 18 925 . 194 105 . . 457 233 . . Impact 1076 | . . . . . . . . 965 . 111 . . . . . . . . . . . . . . . Slashing . | . . . . . . . . . . . . . . . . . . . . . . . . . . Piercing . | . . . . . . . . . . . . . . . . . . . . . . . . . . Highest Corruption 56 | . . . 1 1 6 7 9 . . . . . . 1 1 24 24 32 1 18 35 36 36 36 56 Average Corruption 9 | . . . 1 1 5 6 8 . . . . . . 1 1 5 15 6 1 8 19 35 36 36 41 Corruption Purged 18 | . . . . . . . . . . . . . . . . . 18 . . . . . . . . Corruption Blocked . | . . . . . . . . . . . . . . . . . . . . . . . . . . Effects 355 | . . . 7 12 10 59 49 . . . . . . 2 15 12 43 12 . 5 30 41 25 11 22 Message Errors 82 | . . . 1 1 2 17 12 . . . . . . 2 5 2 6 1 . 3 6 8 7 4 5 Matter Fused 78 | . . . 2 5 3 8 10 . . . . . . . 5 . 12 2 . 1 6 15 3 2 4 Heat Flow Errors 40 | . . . 1 1 1 9 5 . . . . . . . . 2 4 2 . . 3 4 4 2 2 Energy Discharges 43 | . . . . 2 2 11 5 . . . . . . . . 1 8 1 . 1 1 5 5 1 . Parts Rejected 3 | . . . . . 1 1 . . . . . . . . . . . . . . 1 . . . . Parts Fused 5 | . . . . . . . 1 . . . . . . . 1 1 . . . . . . 2 . . Data Loss (minor) 38 | . . . 2 2 . 4 9 . . . . . . . 2 2 8 2 . . 3 2 1 . 1 Data Loss (major) 19 | . . . . 1 1 2 3 . . . . . . . 1 2 . 1 . . 3 2 2 1 . Misfires 16 | . . . 1 . . 3 3 . . . . . . . . 2 2 1 . . 1 2 . 1 . Alerts 8 | . . . . . . 2 . . . . . . . . . . 1 . . . . 2 . . 3 Misdirections 8 | . . . . . . . . . . . . . . . . . . 1 . . . . . . 7 Weapon Failures 15 | . . . . . . 2 1 . . . . . . . 1 . 2 1 . . 6 1 1 . . Overload Shots . | . . . . . . . . . . . . . . . . . . . . . . . . . . Overflow Damage 687 | . 26 . 25 17 52 18 . 420 . 51 5 . . . . 34 . 9 . . 20 . 10 . . Projectiles 126 | . . . . 17 52 . . 28 . . . . . . . . . 9 . . 20 . . . . Explosions 136 | . 26 . 25 . . 18 . . . 18 5 . . . . 34 . . . . . . 10 . . Melee 425 | . . . . . . . . 392 . 33 . . . . . . . . . . . . . . . Knockbacks 61 | . . . 1 8 33 3 . 10 . . . . . . . . . . 1 . 5 . . . . Impact 7 | . . . . . 2 . . 5 . . . . . . . . . . . . . . . . . Kinetic 48 | . . . 1 8 30 3 . . . . . . . . . . . . 1 . 5 . . . . Secondary 6 | . . . . . 1 . . 5 . . . . . . . . . . . . . . . . . Self-Inflicted Damage 308 | . . . 189 . . . . . . . . . . . . . . 42 45 . . 11 . . 21 Shots 8 | . . . 5 . . . . . . . . . . . . . . 1 1 . . 1 . . . Rammed 25 | . 3 1 6 2 6 3 2 . . . . . . . . . . 1 . . . . . . 1 Targets Rammed 34 | . 3 3 10 4 6 3 3 . . . . . . . . . . 1 . . . . . . 1 Kicked . | . . . . . . . . . . . . . . . . . . . . . . . . . . Crushed 9 | . . 2 4 2 . . 1 . . . . . . . . . . . . . . . . . . Highest Temperature 423 | . 69 126 161 423 327 234 271 . 224 196 . . 92 186 210 188 197 260 126 . 227 200 206 152 170 Average Temperature 65 | . 20 33 29 100 79 66 64 . 83 86 . . 41 56 54 103 57 104 53 . 84 89 99 84 91 Received Heat Transfer 2721 | . 87 114 300 122 603 207 62 . 79 30 . . . . 212 6 12 507 . . 88 30 . . 262 Effects 2 | . . . . . 1 . . . . . . . . . . . . 1 . . . . . . . Energy Bleed 1 | . . . . . 1 . . . . . . . . . . . . . . . . . . . . Interference 1 | . . . . . . . . . . . . . . . . . . 1 . . . . . . . Siege Activations 3 | . . . . . . . . . . . . . . . . . 1 . . . 1 1 . . . Total Turns 93 | . . . . . . . . . . . . . . . . . 67 . . . 21 5 . . . Longest Duration 67 | . . . . . . . . . . . . . . . . . 67 . . . 21 5 . . . Martial Activations . | . . . . . . . . . . . . . . . . . . . . . . . . . . Shielding Activations . | . . . . . . . . . . . . . . . . . . . . . . . . . . Robots Disrupted . | . . . . . . . . . . . . . . . . . . . . . . . . . . Combat Hostiles . | . . . . . . . . . . . . . . . . . . . . . . . . . . Robots Corrupted 16 | . . . . . . . . 6 . 1 . . . . . 4 . . . . . 4 1 . . Combat Hostiles 10 | . . . . . . . . . . 1 . . . . . 4 . . . . . 4 1 . . Parts Fried 15 | . . . . . . . . 3 . 1 . . . . . 3 . . . . . 7 1 . . Impact Corruptions 14 | . . . . . . . . 12 . 2 . . . . . . . . . . . . . . . Robots Melted 1 | . . . . . . . . . . . . . . . . . 1 . . . . . . . . Combat Hostiles 1 | . . . . . . . . . . . . . . . . . 1 . . . . . . . . Parts Melted 5 | . . . 1 . . . . . 1 . . . . . . . 3 . . . . . . . . Heat Transferred 3893 | . 481 777 407 . . . . . . . . . 50 . 50 . 1669 359 . . . . 100 . . Parts Sabotaged . | . . . . . . . . . . . . . . . . . . . . . . . . . . Parts Stolen 1 | . . . . . . . . . . 1 . . . . . . . . . . . . . . . Parts Stripped . | . . . . . . . . . . . . . . . . . . . . . . . . . . Power Chain Reactions 4 | . . . . . . . . . . . . . . . 1 . . 1 . . . . 2 . . Alert | -11 -10 -10 -9 -9 -8 -8 -8 -8 -6 -6 -6 -6 -5 -5 -5 -5 -5 -5 -4 -4 -4 -4 -4 -4 -3 ------- Run | Yrd Mat Min Mat Min Mat Sto Rec Scr Fac Low Low Dat Pro Fac Ext Cet Arc Hub Fac Was Fac Upp Upp Zhi Pro Maximum Alert Level 3 | . . . 2 . 2 1 1 . . . . . . . 3 2 . . . . . . . . . Low Security (%) 75 | 100 100 100 32 100 36 86 99 . 100 . . . . 100 56 . 100 100 100 100 100 . . . . Level 1 11 | . . . 40 . 20 13 . . . . . . . . 5 88 . . . . . . . . . Level 2 12 | . . . 27 . 42 . . . . . . . . . 32 11 . . . . . . . . . Level 3 . | . . . . . . . . . . . . . . . 6 . . . . . . . . . . Level 4 . | . . . . . . . . . . . . . . . . . . . . . . . . . . Level 5 . | . . . . . . . . . . . . . . . . . . . . . . . . . . High Security . | . . . . . . . . . . . . . . . . . . . . . . . . . . Max Security . | . . . . . . . . . . . . . . . . . . . . . . . . . . Peak Influence 817 | 10 90 70 499 191 603 378 202 . 71 . . . . 131 817 450 173 183 126 19 77 . . . . Initial 450 | . . . . 181 . 241 62 . . . . . . . 27 450 120 . 39 19 . . . . . Average 138 | 1 21 11 270 28 261 114 138 . 13 . . . . 43 276 327 86 82 43 4 6 . . . . Influence Increases 8563 | 20 321 287 1073 113 1125 686 592 . 193 150 70 . 210 205 1682 284 293 451 196 8 144 135 125 15 185 Destroy 0b10 Robot/C 4520 | . 180 200 640 60 660 380 260 . 120 140 60 . 160 120 820 160 80 200 40 . 40 80 100 . 20 Destroy 0b10 Robot/NC 530 | 20 20 20 105 10 70 60 40 . . . . . . . 55 10 45 15 10 . 35 . . 15 . Destroy Leader 812 | . 46 30 158 10 176 116 . . 30 10 10 . 20 20 86 . . 54 14 . 12 10 10 . . Allied During Kill 991 | . . 18 . . . . 55 . 25 . . . . . 603 95 94 101 . . . . . . . Successful Hack 116 | . 28 . 8 . 33 22 12 . . . . . . 8 5 . . . . . . . . . . Select Force Hacks 240 | . . . . . . 30 210 . . . . . . . . . . . . . . . . . . Disable Machine 210 | . 15 . 30 . 15 30 15 . 15 . . . . . . . 30 . 60 . . . . . . Destroy Structure 469 | . 17 4 42 3 36 18 . . 3 . . . . 42 98 4 44 36 72 8 42 . . . . Partial Spotted 30 | . . . 30 . . . . . . . . . . . . . . . . . . . . . . Lose Combat Pursuer 645 | . 15 15 60 30 135 30 . . . . . . 30 15 15 15 . 45 . . 15 45 15 . 165 Influence Decreases 8508 | 20 321 287 608 578 554 1097 668 84 162 181 70 . 210 148 934 789 593 371 220 64 67 133 204 15 130 Entered New Map 1498 | . . . . 284 . 330 98 84 . 13 . . . . 30 355 180 . 41 37 . 30 16 . . Time Decay 5692 | 20 321 234 568 294 464 607 550 . 82 158 70 . 210 148 584 294 363 120 159 27 53 103 188 15 60 Lost Part 354 | . . 30 40 . 90 10 . . . . . . . . 20 20 10 30 20 . 14 . . . 70 Lost Ally 641 | . . 23 . . . . 20 . 80 10 . . . . 300 120 40 48 . . . . . . . Purge Threat 323 | . . . . . . 150 . . . . . . . . . . . 173 . . . . . . . Squads Dispatched 35 | . 2 . 4 . 5 1 . . 4 . . . . 2 4 . . 8 1 . 3 . . . 1 Investigation 9 | . 1 . 1 . 1 1 . . 3 . . . . 1 . . . 1 . . . . . . . Extermination 5 | . . . . . . . . . 1 . . . . 1 . . . 1 1 . 1 . . . . Reinforcement 16 | . 1 . 2 . 4 . . . . . . . . . 2 . . 5 . . 2 . . . . Assault 4 | . . . 1 . . . . . . . . . . . 2 . . . . . . . . . 1 Garrison 1 | . . . . . . . . . . . . . . . . . . 1 . . . . . . . Intercept . | . . . . . . . . . . . . . . . . . . . . . . . . . . Searches Triggered . | . . . . . . . . . . . . . . . . . . . . . . . . . . Data Miner Redirects 2 | . . . . . . . . . . . . . . . 2 . . . . . . . . . . Construction Impeded 4 | . . . . . 1 . . . . . . . . . 1 . . . . . 2 . . . . Haulers Reinforced . | . . . . . . . . . . . . . . . . . . . . . . . . . . Active Scanning Responses . | . . . . . . . . . . . . . . . . . . . . . . . . . . Cargo Convoy Interrupts . | . . . . . . . . . . . . . . . . . . . . . . . . . . Stealth | -11 -10 -10 -9 -9 -8 -8 -8 -8 -6 -6 -6 -6 -5 -5 -5 -5 -5 -5 -4 -4 -4 -4 -4 -4 -3 --------- Run | Yrd Mat Min Mat Min Mat Sto Rec Scr Fac Low Low Dat Pro Fac Ext Cet Arc Hub Fac Was Fac Upp Upp Zhi Pro Distress Signals 15 | . 2 . 2 . 2 2 . . . . . . . . 2 2 1 1 . . 1 . . . . Communications Jammed . | . . . . . . . . . . . . . . . . . . . . . . . . . . Distress Signals . | . . . . . . . . . . . . . . . . . . . . . . . . . . Times Spotted 375 | . 14 11 51 8 54 26 15 . 7 11 . . 7 7 49 9 35 20 9 5 9 6 6 2 14 Peak Tracking Total 11 | . 3 3 8 2 7 5 7 . 4 4 2 . 5 5 11 5 1 4 7 5 5 4 5 3 10 Tactical Retreats 24 | . 1 1 2 2 3 2 . . . . . . 1 1 1 1 . 1 . . 1 1 1 . 5 Traps | -11 -10 -10 -9 -9 -8 -8 -8 -8 -6 -6 -6 -6 -5 -5 -5 -5 -5 -5 -4 -4 -4 -4 -4 -4 -3 ------- Run | Yrd Mat Min Mat Min Mat Sto Rec Scr Fac Low Low Dat Pro Fac Ext Cet Arc Hub Fac Was Fac Upp Upp Zhi Pro Traps Triggered 21 | . 2 . 1 . 5 3 . . 1 . . . . 2 6 . . . 1 . . . . . . Indirectly 3 | . . . . . . . . . . . . . . . 3 . . . . . . . . . . Trap Hack Attempts . | . . . . . . . . . . . . . . . . . . . . . . . . . . Triggered . | . . . . . . . . . . . . . . . . . . . . . . . . . . Disarmed . | . . . . . . . . . . . . . . . . . . . . . . . . . . Reprogrammed . | . . . . . . . . . . . . . . . . . . . . . . . . . . Reused . | . . . . . . . . . . . . . . . . . . . . . . . . . . Traps Extracted . | . . . . . . . . . . . . . . . . . . . . . . . . . . Installed . | . . . . . . . . . . . . . . . . . . . . . . . . . . Triggered . | . . . . . . . . . . . . . . . . . . . . . . . . . . Machines | -11 -10 -10 -9 -9 -8 -8 -8 -8 -6 -6 -6 -6 -5 -5 -5 -5 -5 -5 -4 -4 -4 -4 -4 -4 -3 ---------- Run | Yrd Mat Min Mat Min Mat Sto Rec Scr Fac Low Low Dat Pro Fac Ext Cet Arc Hub Fac Was Fac Upp Upp Zhi Pro Machines Disabled 17 | . 1 . 2 . 1 2 1 . 1 . . . . . . . 2 . 4 . . . 1 2 . Max in Single Turn 4 | . 1 . 1 . 1 1 1 . 1 . . . . . . . 1 . 4 . . . 1 1 . Garrison Access 2 | . . . . . . 1 . . . . . . . . . . . 1 . . . . . . . Machines Repaired . | . . . . . . . . . . . . . . . . . . . . . . . . . . Machines Dismantled . | . . . . . . . . . . . . . . . . . . . . . . . . . . Machines Sabotaged . | . . . . . . . . . . . . . . . . . . . . . . . . . . Overloaded Fab Kills . | . . . . . . . . . . . . . . . . . . . . . . . . . . Hacking | -11 -10 -10 -9 -9 -8 -8 -8 -8 -6 -6 -6 -6 -5 -5 -5 -5 -5 -5 -4 -4 -4 -4 -4 -4 -3 --------- Run | Yrd Mat Min Mat Min Mat Sto Rec Scr Fac Low Low Dat Pro Fac Ext Cet Arc Hub Fac Was Fac Upp Upp Zhi Pro Machines Accessed 80 | . 8 1 6 . 13 13 12 3 3 . . 4 . 3 3 . . 3 2 . 2 . . 4 . Terminals 42 | . 6 . 4 . 9 9 5 . . . . . . 2 3 . . 2 . . 2 . . . . Fabricators . | . . . . . . . . . . . . . . . . . . . . . . . . . . Repair Stations 3 | . . . . . 1 1 . . . . . . . . . . . . 1 . . . . . . Recycling Units 18 | . 2 . 1 . 2 2 7 . 3 . . . . 1 . . . . . . . . . . . Scanalyzers 3 | . . . 1 . 1 . . . . . . . . . . . . . 1 . . . . . . Garrison Access 2 | . . . . . . 1 . . . . . . . . . . . 1 . . . . . . . Total Hacks 194 | . 19 1 13 . 24 21 20 21 5 . . 29 . 7 4 . . 8 2 . 3 . . 17 . Successful 137 | . 11 1 4 . 15 14 14 21 2 . . 29 . 2 2 . . 4 1 . . . . 17 . Failed 56 | . 8 . 9 . 8 7 6 . 3 . . . . 5 2 . . 4 1 . 3 . . . . Catastrophic 11 | . 1 . 3 . 1 1 . . 1 . . . . 2 1 . . . . . 1 . . . . Database Lockouts 1 | . . . . . 1 . . . . . . . . . . . . . . . . . . . . Manual 95 | . 16 . 9 . 16 12 21 . 6 . . . . 7 2 1 . 2 . . 3 . . . . Terminals 87 | . 16 . 9 . 16 15 11 . . . . . . 6 4 . . 7 . . 3 . . . . Fabricators . | . . . . . . . . . . . . . . . . . . . . . . . . . . Repair Stations 6 | . . . . . 3 2 . . . . . . . . . . . . 1 . . . . . . Recycling Units 25 | . 3 . 2 . 2 3 9 . 5 . . . . 1 . . . . . . . . . . . Scanalyzers 6 | . . . 2 . 3 . . . . . . . . . . . . . 1 . . . . . . Garrison Access 2 | . . . . . . 1 . . . . . . . . . . . 1 . . . . . . . Terminal Hacks 82 | . 2 1 1 . 3 4 . 21 . . . 29 . 1 1 . . 2 . . . . . 17 . Record 32 | . . . . . . . . 16 . . . 11 . . . . . . . . . . . 5 . Part Schematic 14 | . . . . . . . . . . . . 10 . . . . . . . . . . . 4 . Robot Schematic 5 | . . . . . . . . . . . . 5 . . . . . . . . . . . . . Robot Analysis 10 | . 2 . . . . . . 4 . . . . . . . . . . . . . . . 4 . Prototype ID Bank 7 | . . . . . . . . . . . . 3 . . . . . . . . . . . 4 . Open Door 4 | . . 1 . . . 3 . . . . . . . . . . . . . . . . . . . Branch Access Points 3 | . . . 1 . 1 . . . . . . . . 1 . . . . . . . . . . . Alert Level 1 | . . . . . . . . . . . . . . . 1 . . . . . . . . . . Unreport Threat 3 | . . . . . . 1 . . . . . . . . . . . 2 . . . . . . . Hauler Manifests 1 | . . . . . 1 . . . . . . . . . . . . . . . . . . . . Registered Components 1 | . . . . . 1 . . . . . . . . . . . . . . . . . . . . Proto ID Catalog 1 | . . . . . . . . 1 . . . . . . . . . . . . . . . . . Fabricator Hacks . | . . . . . . . . . . . . . . . . . . . . . . . . . . Repair Station Hacks 3 | . . . . . 1 2 . . . . . . . . . . . . . . . . . . . Scan Component 2 | . . . . . 1 1 . . . . . . . . . . . . . . . . . . . Repair 1 | . . . . . . 1 . . . . . . . . . . . . . . . . . . . Recycling Unit Hacks 5 | . 3 . 1 . 1 . . . . . . . . . . . . . . . . . . . . Retrieve Components 5 | . 3 . 1 . 1 . . . . . . . . . . . . . . . . . . . . Scanalyzer 5 | . . . 2 . 2 . . . . . . . . . . . . . 1 . . . . . . Insert Component 1 | . . . 1 . . . . . . . . . . . . . . . . . . . . . . Retrieve Study 4 | . . . 1 . 2 . . . . . . . . . . . . . 1 . . . . . . Garrison Access Hacks 2 | . . . . . . 1 . . . . . . . . . . . 1 . . . . . . . Seal Access 2 | . . . . . . 1 . . . . . . . . . . . 1 . . . . . . . Unauthorized Hacks 40 | . 6 . . . 8 7 14 . 2 . . . . 1 1 . . 1 . . . . . . . Terminals 29 | . 6 . . . 8 6 7 . . . . . . . 1 . . 1 . . . . . . . Assimilate 2 | . . . . . . 1 1 . . . . . . . . . . . . . . . . . . Botnet 5 | . 1 . . . 2 . 1 . . . . . . . 1 . . . . . . . . . . Skim 21 | . 5 . . . 6 5 5 . . . . . . . . . . . . . . . . . . Sabotage 1 | . . . . . . . . . . . . . . . . . . 1 . . . . . . . Fabricators . | . . . . . . . . . . . . . . . . . . . . . . . . . . Repair Stations . | . . . . . . . . . . . . . . . . . . . . . . . . . . Recycling Units 11 | . . . . . . 1 7 . 2 . . . . 1 . . . . . . . . . . . Tunnel 8 | . . . . . . 1 7 . . . . . . . . . . . . . . . . . . Fedlink 1 | . . . . . . . . . 1 . . . . . . . . . . . . . . . . Scrapoids 2 | . . . . . . . . . 1 . . . . 1 . . . . . . . . . . . Scanalyzers . | . . . . . . . . . . . . . . . . . . . . . . . . . . Garrison Access . | . . . . . . . . . . . . . . . . . . . . . . . . . . Data Cores Recovered 3 | . . . 2 . . 1 . . . . . . . . . . . . . . . . . . . Used . | . . . . . . . . . . . . . . . . . . . . . . . . . . Hacking Detections 35 | . 8 . 5 . 7 4 3 . 1 . . . . 2 1 . . 1 1 . 2 . . . . Full Trace Events 1 | . . . . . . . . . 1 . . . . . . . . . . . . . . . . Feedback Events . | . . . . . . . . . . . . . . . . . . . . . . . . . . Feedback Blocked . | . . . . . . . . . . . . . . . . . . . . . . . . . . Robot Schematics Acquired 5 | . . . . . . . . . . . . 5 . . . . . . . . . . . . . Robots Built . | . . . . . . . . . . . . . . . . . . . . . . . . . . Authchips . | . . . . . . . . . . . . . . . . . . . . . . . . . . Time . | . . . . . . . . . . . . . . . . . . . . . . . . . . Total Robot Build Rating . | . . . . . . . . . . . . . . . . . . . . . . . . . . Part Schematics Acquired 14 | . . . . . . . . . . . . 10 . . . . . . . . . . . 4 . Parts Built . | . . . . . . . . . . . . . . . . . . . . . . . . . . Authchips . | . . . . . . . . . . . . . . . . . . . . . . . . . . Time . | . . . . . . . . . . . . . . . . . . . . . . . . . . Total Part Build Rating . | . . . . . . . . . . . . . . . . . . . . . . . . . . Part Studies Acquired 4 | . . . 1 . 2 . . . . . . . . . . . . . 1 . . . . . . Parts Repaired 1 | . . . . . . 1 . . . . . . . . . . . . . . . . . . . Time 26 | . . . . . . 26 . . . . . . . . . . . . . . . . . . . Parts Recycled . | . . . . . . . . . . . . . . . . . . . . . . . . . . Recycled Matter . | . . . . . . . . . . . . . . . . . . . . . . . . . . Retrieved Matter . | . . . . . . . . . . . . . . . . . . . . . . . . . . Retrieved Components 14 | . 11 . 1 . 2 . . . . . . . . . . . . . . . . . . . . Parts Scanalyzed . | . . . . . . . . . . . . . . . . . . . . . . . . . . Part Schematics Acquired . | . . . . . . . . . . . . . . . . . . . . . . . . . . Parts Damaged . | . . . . . . . . . . . . . . . . . . . . . . . . . . Bothacking | -11 -10 -10 -9 -9 -8 -8 -8 -8 -6 -6 -6 -6 -5 -5 -5 -5 -5 -5 -4 -4 -4 -4 -4 -4 -3 ------------ Run | Yrd Mat Min Mat Min Mat Sto Rec Scr Fac Low Low Dat Pro Fac Ext Cet Arc Hub Fac Was Fac Upp Upp Zhi Pro Used RIF Installer . | . . . . . . . . . . . . . . . . . . . . . . . . . . Robots Hacked 1 | . . . . . . . . 1 . . . . . . . . . . . . . . . . . Non-combat 1 | . . . . . . . . 1 . . . . . . . . . . . . . . . . . Combat . | . . . . . . . . . . . . . . . . . . . . . . . . . . Robot Hacks Applied 1 | . . . . . . . . 1 . . . . . . . . . . . . . . . . . parse_system 1 | . . . . . . . . 1 . . . . . . . . . . . . . . . . . Relay Couplers Released . | . . . . . . . . . . . . . . . . . . . . . . . . . . Fabnet Peak Effective % . | . . . . . . . . . . . . . . . . . . . . . . . . . . Robots Rewired 25 | . . . . . . . 12 . . . . . . . 13 . . . . . . . . . . Allies Hacked 1 | . . . . . . . . . 1 . . . . . . . . . . . . . . . . Hacks Repelled . | . . . . . . . . . . . . . . . . . . . . . . . . . . Allies | -11 -10 -10 -9 -9 -8 -8 -8 -8 -6 -6 -6 -6 -5 -5 -5 -5 -5 -5 -4 -4 -4 -4 -4 -4 -3 -------- Run | Yrd Mat Min Mat Min Mat Sto Rec Scr Fac Low Low Dat Pro Fac Ext Cet Arc Hub Fac Was Fac Upp Upp Zhi Pro Total Allies 55 | . . 3 . . . . 12 . 5 . . . . 5 25 5 . . . . . . . . . Largest Group 16 | . . 3 . . . . 11 10 6 1 . . . 5 16 6 5 3 . . . . . . . Highest-Rated Group 577 | . . 73 . . . . 187 169 170 27 . . . 238 577 509 406 281 . . . . . . . Highest-Rated Ally 159 | . . 31 . . . . 27 27 31 27 . . . 50 159 127 96 96 . . . . . . . Total Orders 17 | . . . . . . . 2 10 . . . . . 3 . . 2 . . . . . . . . STAY 7 | . . . . . . . 1 3 . . . . . 2 . . 1 . . . . . . . . FOLLOW 5 | . . . . . . . 1 2 . . . . . 1 . . 1 . . . . . . . . EXPLORE 4 | . . . . . . . . 4 . . . . . . . . . . . . . . . . . RETURN 1 | . . . . . . . . 1 . . . . . . . . . . . . . . . . . Ally Attacks 363 | . . 18 . . . . 11 . 26 . . . . . 225 24 19 40 . . . . . . . Total Damage 8148 | . . 275 . . . . 133 . 504 . . . . . 4400 706 872 1258 . . . . . . . Kills 59 | . . 2 . . . . 4 . 3 . . . . . 34 3 3 10 . . . . . . . Allies Corrupted 5 | . . . . . . . . 5 . . . . . . . . . . . . . . . . . Allies Melted . | . . . . . . . . . . . . . . . . . . . . . . . . . . Intel | -11 -10 -10 -9 -9 -8 -8 -8 -8 -6 -6 -6 -6 -5 -5 -5 -5 -5 -5 -4 -4 -4 -4 -4 -4 -3 ------- Run | Yrd Mat Min Mat Min Mat Sto Rec Scr Fac Low Low Dat Pro Fac Ext Cet Arc Hub Fac Was Fac Upp Upp Zhi Pro Active Infowar (turns) 27951 | 57 2406 2034 2133 1 2599 1962 1582 5910 633 1522 391 263 1212 778 1483 . 1 262 453 108 475 708 479 256 243 Optics 18335 | . . . . . 2599 1962 1582 5910 633 1522 391 263 1212 778 1483 . . . . . . . . . . Sensors 5352 | . . . . 1 . . . . 387 1218 391 263 1195 778 25 . 1 262 453 . 378 . . . . Structural 2171 | . . . . . . . . 12 . . . . . . . . . . . . 473 708 479 256 243 Seismic 8244 | 57 2406 2034 2133 . . . . . . . . . . . . . . . . 108 2 553 479 256 216 Robot Analysis Total 10 | . 2 . . . . . . 4 . . . . . . . . . . . . . . . 4 . Derelict Logs Recovered 9 | . . 3 . 2 . . . 2 . 1 . . . . . . . . . . . 1 . . . Drone Launches 16 | . . . . . . 16 . . . . . . . . . . . . . . . . . . . Drone Recoveries 2 | . . . . . . . . 2 . . . . . . . . . . . . . . . . . Exploration | -11 -10 -10 -9 -9 -8 -8 -8 -8 -6 -6 -6 -6 -5 -5 -5 -5 -5 -5 -4 -4 -4 -4 -4 -4 -3 ------------- Run | Yrd Mat Min Mat Min Mat Sto Rec Scr Fac Low Low Dat Pro Fac Ext Cet Arc Hub Fac Was Fac Upp Upp Zhi Pro Turns Passed 33866 | 167 2406 2034 2947 2063 2614 1962 1582 5910 633 1522 391 263 1212 778 2595 655 998 288 486 139 475 708 479 256 303 Spaces Moved 14278 | 80 846 728 1175 673 994 787 673 2497 286 683 180 131 501 357 1051 189 454 167 309 88 267 397 302 169 294 Core 109 | 2 . . . . . . . 102 . . . . . . . . . . . . . . . . 5 Treads 11772 | 78 846 728 1175 673 994 787 673 2395 286 683 180 131 501 357 1051 181 1 . 1 . 4 47 . . . Legs . | . . . . . . . . . . . . . . . . . . . . . . . . . . Wheels 2308 | . . . . . . . . . . . . . . . . 8 453 167 308 88 263 350 302 169 200 Hover . | . . . . . . . . . . . . . . . . . . . . . . . . . . Flight 89 | . . . . . . . . . . . . . . . . . . . . . . . . . 89 Fastest Speed 29 | 50 160 240 160 240 200 200 200 50 200 200 200 200 200 200 200 130 120 130 130 130 120 125 130 130 29 Average Speed 199 | 157 209 240 219 240 220 204 200 216 200 200 200 200 200 200 209 225 130 139 139 130 127 151 134 130 98 Slowest Speed 320 | 160 320 240 240 240 240 320 200 240 200 200 200 200 200 200 292 292 240 140 240 130 240 240 150 130 190 Overloaded Moves . | . . . . . . . . . . . . . . . . . . . . . . . . . . Propulsion Burnouts . | . . . . . . . . . . . . . . . . . . . . . . . . . . Robots Hopped . | . . . . . . . . . . . . . . . . . . . . . . . . . . Potential Cave-ins 9 | . . 5 . . . . . . . . . . . . . . . . . 4 . . . . . Cave-ins Triggered . | . . . . . . . . . . . . . . . . . . . . . . . . . . Teleports 1 | . . . . . . . . . . . . . . . . . . . . . . . . 1 . Exploration Rate (%) 61 | 4 98 99 94 99 80 96 98 96 10 74 40 77 59 11 81 56 90 21 10 79 9 55 54 60 60 Regions Visited 25 Branch Regions 17 Pre-discovered Areas 27 | . 2 1 . 2 1 3 8 5 . 1 . 1 . . . . . . . . . . . 3 . Known Exits Taken 19 | . . 1 1 . 1 . 1 1 1 1 1 1 1 1 1 1 1 1 . . 1 1 1 1 . Unknown Exits Taken 4 | 1 1 . . 1 . 1 . . . . . . . . . . . . . . . . . . . Scrap Searched 18 | . . 1 . 3 . . . 5 . 4 2 . 2 . . . . . . . . 1 . . . Spaces Dug 80 | . 6 7 . . 11 . . . 3 11 . . 1 8 . . 1 1 13 2 1 3 12 . . Terrain Destroyed 438 | . 15 9 41 4 30 14 . . 3 52 34 . 52 21 34 1 9 15 56 8 23 5 12 . . Melee 3 | . . . . . . . . . 3 . . . . . . . . . . . . . . . . Projectile 136 | . . 9 4 4 10 2 . . . 22 . . 2 9 7 1 9 4 14 8 23 5 3 . . AOE 299 | . 15 . 37 . 20 12 . . . 30 34 . 50 12 27 . . 11 42 . . . 9 . . Terrain Rammed . | . . . . . . . . . . . . . . . . . . . . . . . . . . Walls Destroyed . | . . . . . . . . . . . . . . . . . . . . . . . . . . Machines Disabled . | . . . . . . . . . . . . . . . . . . . . . . . . . . Actions | -11 -10 -10 -9 -9 -8 -8 -8 -8 -6 -6 -6 -6 -5 -5 -5 -5 -5 -5 -4 -4 -4 -4 -4 -4 -3 --------- Run | Yrd Mat Min Mat Min Mat Sto Rec Scr Fac Low Low Dat Pro Fac Ext Cet Arc Hub Fac Was Fac Upp Upp Zhi Pro Total 18401 | 100 1433 907 1378 1060 1237 1031 864 2977 327 779 209 133 693 403 1335 400 788 198 344 107 349 490 357 197 305 Wait 2555 | . 533 115 44 346 89 118 35 410 9 15 20 . 167 6 67 159 238 10 12 10 38 78 32 . 4 Move 14255 | 79 845 727 1174 672 994 786 672 2496 285 682 179 130 500 356 1050 188 453 166 309 87 266 396 301 168 294 Hop . | . . . . . . . . . . . . . . . . . . . . . . . . . . Pick Up 148 | 4 17 2 17 4 16 9 1 29 4 2 . . . 4 3 11 4 2 4 1 3 1 1 9 . Fast Attach 74 | 7 2 . 2 1 4 9 . 3 3 3 2 . 2 3 11 4 9 . 1 . 2 1 . 2 3 Attach 63 | . . 3 4 . 7 7 . 7 2 1 1 1 1 2 6 3 1 2 2 1 3 1 3 2 3 Detach 13 | . . . . . . 1 3 2 . 1 1 . 1 . 2 . . . . . 1 . 1 . . Swap 153 | . 8 7 26 3 16 22 6 2 3 13 1 1 3 5 8 5 5 3 5 2 2 2 2 3 . Drop 155 | . 2 4 19 2 21 14 6 11 4 8 2 1 2 6 14 15 10 1 2 1 2 2 2 4 . Fire 728 | 10 23 45 82 28 85 61 31 . 11 49 3 . 17 17 94 15 68 12 9 5 32 8 15 8 . Melee 20 | . . . . . . . . 11 4 5 . . . . . . . . . . . . . . . Ram 3 | . . . . . . . . . . . . . . . . . . 2 . . . . . . 1 Kick . | . . . . . . . . . . . . . . . . . . . . . . . . . . Crush 31 | . 3 3 10 4 5 3 3 . . . . . . . . . . . . . . . . . . Escape Stasis 7 | . . . . . . . . . 2 . . . . 4 . . . . . . . . . 1 . Rewire 194 | . . 1 . . . . 107 6 . . . . . . 80 . . . . . . . . . . Trap . | . . . . . . . . . . . . . . . . . . . . . . . . . . Miscellaneous 2 | . . . . . . 1 . . . . . . . . . . . . . . . 1 . . . Route ------- -11/Scrapyard -10/Materials (discovered 6 exits: *Mat x3 / *Min x2 / [*Sub]) -10/Mines (discovered 4 exits: *Mat x2 / [*Exi] / [*Sub]) -9/Materials (discovered 4 exits: *Mat x3 / *Min) -9/Mines (discovered 3 exits: *Mat x2 / [*Zio]) -8/Materials (discovered 4 exits: *Fac x3 / *Sto) -8/Storage (discovered 2 exits: *Fac / *Rec) -8/Recycling (discovered 2 exits: *Fac / *Scr) -8/Scraptown (discovered 2 exits: *Fac x2) -6/Factory (discovered 6 exits: Fac x4 / *Low x2) -6/Lower Caves -6/Lower Caves (discovered 2 exits: *Fac / *Dat) -6/Data Miner -5/Proximity Caves -5/Factory (discovered 4 exits: Upp x2 / *Ext x2) -5/Extension (discovered 2 exits: *Fac / *Cet) -5/Cetus (discovered 2 exits: *Fac / *Arc) -5/Archives (discovered 3 exits: *Fac / *Hub x2) -5/Hub_04(d) (discovered 3 exits: *Fac x3) -4/Factory -4/Waste -4/Factory -4/Upper Caves -4/Upper Caves (discovered 2 exits: *Res / *Zhi) -4/Zhirov -3/Proximity Caves History --------- Turn | Location | Event 9 | -11/Scrapyard | Discovered new exit (range 16) 168 | -11/Scrapyard | Entered Materials 227 | -10/Materials | Discovered new exit (range 9) 302 | -10/Materials | Build established: Mutant 633 | -10/Materials | Discovered new exit (range 6) 640 | -10/Materials | Discovered new exit (range 8) 668 | -10/Materials | Derelicts attacked the area 992 | -10/Materials | Discovered new exit (range 15) 1416 | -10/Materials | Discovered new exit (range 11) 2116 | -10/Materials | Learned 4 Recycling zone layouts 2175 | -10/Materials | Identified exit to Materials 2215 | -10/Materials | Learned location of Mines (-9) 2250 | -10/Materials | Learned Storage stockpile data 2574 | -10/Materials | Entered Mines 2734 | -10/Mines | Discovered exit to Materials (range 6) 2783 | -10/Mines | Joined a pair of Derelicts in attacking an 0b10 outpost 2981 | -10/Mines | Discovered new exit (range 10) 3021 | -10/Mines | Build established: Scavenger-Mutant 3082 | -10/Mines | Learned Materials garrison access intel 3257 | -10/Mines | Discovered exit to Materials (range 4) 3346 | -10/Mines | Escorted by a lone wolf Derelict 3583 | -10/Mines | Met a Derelict who couldn't figure out how to use a Trap Extractor 3801 | -10/Mines | Deemed a non-threat by the Exiles lab entrance 3803 | -10/Mines | Discovered new exit (range 5) 3880 | -10/Mines | Learned Materials garrison access intel 4070 | -10/Mines | Excavation squad dispatched 4070 | -10/Mines | A large section of the Mines collapsed 4376 | -10/Mines | Build established: Mutant 4608 | -10/Mines | Entered Materials 4608 | -9/Materials | Evolved 2 slots: Propulsion x1, Utility x1 4609 | -9/Materials | Identified exit to Mines 5119 | -9/Materials | Build established: Scavenger-Mutant 5211 | -9/Materials | Destroyed 9 combat bots 5469 | -9/Materials | Discovered new exit (range 16) 6048 | -9/Materials | Discovered new exit (range 15) 6987 | -9/Materials | Discovered new exit (range 10) 7008 | -9/Materials | First assault squad dispatched 7035 | -9/Materials | Build established: Mutant 7555 | -9/Materials | Entered Mines 7639 | -9/Mines | Discovered new exit (range 11) 7727 | -9/Mines | Learned location of Zion (-7) 7799 | -9/Mines | Discovered new exit (range 10) 7962 | -9/Mines | Found a damaged Exp. Sensor Array with a note attached 7977 | -9/Mines | Found Prototype Device 7977 | -9/Mines | Identified Exp. Sensor Array 8170 | -9/Mines | Assembled infested the area 8175 | -9/Mines | Assisted by a Guerilla fighting off Assembled 8753 | -9/Mines | A Derelict revealed a hidden shortcut to a safe place 8960 | -9/Mines | Found a hidden stash of uninstalled traps 9116 | -9/Mines | A weapon hastily lodged in a ceiling crevice suddenly fell to the ground 9618 | -9/Mines | Entered Materials 9618 | -8/Materials | Evolved 2 slots: Utility x1, Weapon x1 9619 | -8/Materials | Loaded intel: 1 garrison access location 9990 | -8/Materials | Central database locked down 10063 | -8/Materials | Build established: Tank 10700 | -8/Materials | Build established: Gunner 10773 | -8/Materials | Discovered new exit (range 5) 11576 | -8/Materials | Discovered new exit (range 13) 11635 | -8/Materials | Identified exit to Storage 11672 | -8/Materials | Learned Factory security intel 11707 | -8/Materials | Learned Factory stockpile data 11734 | -8/Materials | Learned 2 Storage zone layouts 11749 | -8/Materials | Learned location of 1 exit from Recycling 11752 | -8/Materials | Learned location of Extension (-5) 11753 | -8/Materials | Identified exit to Factory 11755 | -8/Materials | Learned 8 Factory zone layouts 11769 | -8/Materials | Learned Factory stockpile data 12232 | -8/Materials | Entered Storage 12262 | -8/Storage | Lost 4 parts (1p1n1u1w) 12580 | -8/Storage | Repaired Lgt. Treads+ 12724 | -8/Storage | Used back door to open Recycling access 12724 | -8/Storage | Discovered new exit (range 4) 13259 | -8/Storage | Core integrity fell below 50% 13572 | -8/Storage | Found Prototype Launcher 13572 | -8/Storage | Identified Gui. Missile Launcher 13697 | -8/Storage | Loaded intel: 12 trap records 13763 | -8/Storage | Build established: Scavenger-Gunner 13775 | -8/Storage | Learned location of 1 exit from Extension 13825 | -8/Storage | Learned location of 1 exit from Extension 14194 | -8/Storage | Entered Recycling 14194 | -8/Recycling | Accompanied by 16 allies 14195 | -8/Recycling | Identified exit to Factory 14196 | -8/Recycling | Identified exit to Scraptown 14492 | -8/Recycling | Destroyed 7 combat bots 14862 | -8/Recycling | Build established: Commander-Gunner 15260 | -8/Recycling | Learned Factory garrison access intel 15286 | -8/Recycling | Learned Factory garrison access intel 15312 | -8/Recycling | Learned 2 Storage zone layouts 15332 | -8/Recycling | Learned Storage emergency access door positions 15363 | -8/Recycling | Learned Storage stockpile data 15687 | -8/Recycling | Scanned before Scraplab entrance 15717 | -8/Recycling | Entered Scraplab 15776 | -8/Recycling | Entered Scraptown 15776 | -8/Scraptown | Accompanied by 26 allies 15776 | -8/Scraptown | System corruption cleaned by C-Scrubber 15808 | -8/Scraptown | Heard Great Nut preacher, LISTEN AND RECITE! 15970 | -8/Scraptown | Build established: Commander-Mutant 16078 | -8/Scraptown | Scanned Subdweller tech in exchange for log data 16260 | -8/Scraptown | Visited UFD Registry 16260 | -8/Scraptown | Registered with UFD as "Gravsink" 16310 | -8/Scraptown | Visited Science Guys 16420 | -8/Scraptown | Visited Research Penetration Think Tank 16464 | -8/Scraptown | Visited Scrap Suit Storage 16490 | -8/Scraptown | Visited Derelict Rescue Squad 16503 | -8/Scraptown | Found DRS Beacon 16532 | -8/Scraptown | Visited Cartography Club 16596 | -8/Scraptown | Visited Analyses Database 16648 | -8/Scraptown | Visited Curators Association 17145 | -8/Scraptown | Visited Symbiants 17196 | -8/Scraptown | Visited Shadow of the Wyrm 17217 | -8/Scraptown | Visited Fellowship of the Rings 17263 | -8/Scraptown | Visited IN-MT5's Study 17930 | -8/Scraptown | Guru changed UFD alias to "Nullsink" 18754 | -8/Scraptown | Found Unknown Device 18754 | -8/Scraptown | Identified Deep Structural Scanner 18760 | -8/Scraptown | Learned location of Proximity Caves (-4) 18760 | -8/Scraptown | Learned location of Warlord (-5) 18760 | -8/Scraptown | Learned 8 Factory zone layouts 18760 | -8/Scraptown | Learned 4 Recycling zone layouts 18760 | -8/Scraptown | Learned 12 Upper Caves zone layouts 18760 | -8/Scraptown | Learned 8 Proximity Caves zone layouts 18760 | -8/Scraptown | Learned 4 Hub_04(d) zone layouts 18760 | -8/Scraptown | Learned location of 1 exit from Research 18760 | -8/Scraptown | Learned location of 1 exit from Upper Caves 18760 | -8/Scraptown | Learned location of 2 exits from Upper Caves 19987 | -8/Scraptown | Visited Junk Repository 20419 | -8/Scraptown | Found Scrap Suit 20776 | -8/Scraptown | Visited Supply Room 21341 | -8/Scraptown | Build established: Commander-Gunner 21584 | -8/Scraptown | Met Optimus 21584 | -8/Scraptown | Accepted into 0bPrime 21686 | -8/Scraptown | Entered Factory 21686 | -6/Factory | Accompanied by 1 ally 21686 | -6/Factory | Evolved 4 slots: Power x1, Propulsion x1, Utility x2 21687 | -6/Factory | Identified exit to Factory 21687 | -6/Factory | Identified exit to Lower Caves 21691 | -6/Factory | Loaded intel: 4 garrison access locations 22101 | -6/Factory | Scrapoid reinforcements arrived 22221 | -6/Factory | Lost 4 allies 22231 | -6/Factory | Loaded intel: 6 recycling unit locations 22319 | -6/Factory | Entered Lower Caves 22319 | -6/Lower Caves | Accompanied by 1 ally 22320 | -6/Lower Caves | Identified exit to Lower Caves 22630 | -6/Lower Caves | Build established: Scavenger-Skirmisher 22761 | -6/Lower Caves | Attracted the attention of an 0b10 checkpoint 23311 | -6/Lower Caves | Encountered a Warlord checkpoint 23605 | -6/Lower Caves | Ambushed by wild Derelicts 23841 | -6/Lower Caves | Entered another Lower Caves area 23869 | -6/Lower Caves | Discovered exit to Factory (range 5) 24176 | -6/Lower Caves | Discovered new exit (range 17) 24201 | -6/Lower Caves | Encountered a Warlord checkpoint 24208 | -6/Lower Caves | Identified exit to Data Miner 24232 | -6/Lower Caves | Entered Data Miner 24232 | -6/Data Miner | Discovered new exit (range 6) 24258 | -6/Data Miner | Met Data Miner 24322 | -6/Data Miner | Learned location of Section 7 (-2) 24322 | -6/Data Miner | Acquired the access code to Warlord's prototype stash 24342 | -6/Data Miner | Received God Mode back door access code from Data Miner 24493 | -6/Data Miner | Identified exit to Proximity Caves 24495 | -6/Data Miner | Entered Proximity Caves 25679 | -5/Proximity Caves | Discovered exit to Factory (range 9) 25707 | -5/Proximity Caves | Entered Factory 25707 | -5/Factory | Evolved 2 slots: Utility x2 25708 | -5/Factory | Identified exit to Extension 25710 | -5/Factory | Loaded intel: 4 garrison access locations 26078 | -5/Factory | Identified exit to Upper Caves 26338 | -5/Factory | Scrapoids reinforcements arrived? 26485 | -5/Factory | Entered Extension 26485 | -5/Extension | Accompanied by 5 allies 26486 | -5/Extension | Identified exit to Cetus 26486 | -5/Extension | Identified exit to Factory 26621 | -5/Extension | Lost 3 allies 26871 | -5/Extension | Build established: Scavenger-Tank 27343 | -5/Extension | Rescued a captive Derelict 27344 | -5/Extension | Rescued a captive Derelict 27372 | -5/Extension | Rescued a captive Derelict 27373 | -5/Extension | Rescued a captive Derelict 27476 | -5/Extension | Rescued A7 27539 | -5/Extension | Build established: Commander-Tank 27794 | -5/Extension | Spotted B-75 Beast 27812 | -5/Extension | Spotted B-75 Beast 27818 | -5/Extension | Allies destroyed B-75 Beast 27835 | -5/Extension | Allies destroyed B-75 Beast 27864 | -5/Extension | Lost 5 allies 27949 | -5/Extension | Rescued a captive Derelict 28297 | -5/Extension | Build established: Scavenger-Gunner 28353 | -5/Extension | Rescued a captive Derelict 28460 | -5/Extension | Rescued a captive Derelict 28461 | -5/Extension | Rescued a captive Derelict 28559 | -5/Extension | Rescued a captive Derelict 28560 | -5/Extension | Rescued a captive Derelict 28612 | -5/Extension | Rescued a captive Derelict 28785 | -5/Extension | Disrupted transfer network 28837 | -5/Extension | Build established: Commander-Gunner 28885 | -5/Extension | First assault squad dispatched 28888 | -5/Extension | Found Prototype Protection 28888 | -5/Extension | Identified Med. Regenerative Plating 28919 | -5/Extension | Incoming assault squad redirected 28920 | -5/Extension | Incoming assault squad redirected 28972 | -5/Extension | Lost 9 allies 29080 | -5/Extension | Entered Cetus 29080 | -5/Cetus | Accompanied by 6 allies (A7) 29085 | -5/Cetus | Acquired a Cetus Manufacturing Module code from A7 29149 | -5/Cetus | Spotted Cetus Guard 29150 | -5/Cetus | Spotted Cetus Guard 29155 | -5/Cetus | Spotted Cetus Guard 29156 | -5/Cetus | Spotted Cetus Guard 29161 | -5/Cetus | Allies destroyed Cetus Guard 29177 | -5/Cetus | Destroyed Cetus Guard 29181 | -5/Cetus | Destroyed Cetus Guard 29182 | -5/Cetus | Destroyed Cetus Guard 29182 | -5/Cetus | Extracted ID and sensor layout for unrecognized location from A7's data core 29202 | -5/Cetus | Lost 5 allies 29247 | -5/Cetus | Build established: Scavenger-Gunner 29343 | -5/Cetus | Started Cetus Manufacturing Module 29368 | -5/Cetus | Manufactured an Enhanced Grunt 29369 | -5/Cetus | Discovered new exit (range 15) 29393 | -5/Cetus | Manufactured an Enhanced Grunt 29418 | -5/Cetus | Manufactured an Enhanced Grunt 29443 | -5/Cetus | Manufactured an Enhanced Grunt 29468 | -5/Cetus | Manufactured an Enhanced Grunt 29531 | -5/Cetus | Spotted Cetus Guard 29532 | -5/Cetus | Spotted Cetus Guard 29538 | -5/Cetus | Spotted Cetus Guard 29540 | -5/Cetus | Spotted Cetus Guard 29545 | -5/Cetus | Allies destroyed Cetus Guard 29547 | -5/Cetus | Destroyed Cetus Guard 29549 | -5/Cetus | Destroyed Cetus Guard 29550 | -5/Cetus | Allies destroyed Cetus Guard 29562 | -5/Cetus | Discovered exit to Factory (range 15) 29582 | -5/Cetus | Met Revision 17 29601 | -5/Cetus | System corruption reached 10% 29705 | -5/Cetus | Identified exit to Archives 29735 | -5/Cetus | Entered Archives 29735 | -5/Archives | Accompanied by 5 allies 29914 | -5/Archives | Discovered new exit (range 14) 30269 | -5/Archives | Discovered exit to Factory (range 15) 30486 | -5/Archives | Found Prototype Device 30486 | -5/Archives | Identified Exp. Thermal Shield 30689 | -5/Archives | Discovered new exit (range 16) 30717 | -5/Archives | Identified exit to Hub_04(d) 30733 | -5/Archives | Entered Hub_04(d) 30733 | -5/Hub_04(d) | Accompanied by 3 allies 30994 | -5/Hub_04(d) | Discovered exit to Factory (range 3) 30998 | -5/Hub_04(d) | Garrison activated, responded to threat 31016 | -5/Hub_04(d) | System corruption reached 30% 31021 | -5/Hub_04(d) | Entered Factory 31021 | -4/Factory | Evolved 2 slots: Propulsion x1, Utility x1 31044 | -4/Factory | Lost 3 parts (1u2w) 31433 | -4/Factory | Found Quantum Capacitor 31507 | -4/Factory | Sucked down chute 31507 | -4/Factory | Entered Waste 31522 | -4/Waste | EMP discharged 31572 | -4/Waste | Spotted C-40 Crusher 31580 | -4/Waste | Spotted C-40 Crusher 31585 | -4/Waste | Spotted C-40 Crusher 31589 | -4/Waste | Spotted C-40 Crusher 31593 | -4/Waste | Spotted C-40 Crusher 31595 | -4/Waste | Spotted C-40 Crusher 31622 | -4/Waste | EMP discharged 31622 | -4/Waste | System corruption reached 10% 31630 | -4/Waste | Discovered new exit (range 12) 31645 | -4/Waste | Identified exit to Factory 31646 | -4/Waste | Entered Factory 31934 | -4/Factory | Build established: Scavenger-Skirmisher 31966 | -4/Factory | Discovered new exit (range 16) 32003 | -4/Factory | Identified exit to Upper Caves 32109 | -4/Factory | System corruption reached 30% 32121 | -4/Factory | Entered Upper Caves 32122 | -4/Upper Caves | Identified exit to Upper Caves 32124 | -4/Upper Caves | Activated DRS Beacon 32316 | -4/Upper Caves | Build established: Scavenger-Tank 32407 | -4/Upper Caves | Learned Research stockpile data 32829 | -4/Upper Caves | Entered another Upper Caves area 32830 | -4/Upper Caves | Identified exit to Zhirov 32830 | -4/Upper Caves | Identified exit to Research 33101 | -4/Upper Caves | Spotted B-86 Titan 33125 | -4/Upper Caves | Encountered a Warlord checkpoint 33269 | -4/Upper Caves | Found Alien Artifact 33308 | -4/Upper Caves | Entered Zhirov 33309 | -4/Zhirov | Identified exit to Proximity Caves 33333 | -4/Zhirov | Met Zhirov 33359 | -4/Zhirov | Learned location of Command (-1) 33372 | -4/Zhirov | Zhirov requested help retrieving the SGEMP Prototype 33393 | -4/Zhirov | Found Alien Artifact 33415 | -4/Zhirov | Identified Integrated Dissipator 33415 | -4/Zhirov | Installed Integrated Dissipator, increased core heat dissipation (+20) 33428 | -4/Zhirov | Found Alien Artifact 33550 | -4/Zhirov | Attacked by Zhirov 33551 | -4/Zhirov | Identified Transdimensional Reconstructor 33551 | -4/Zhirov | Warped through subspace 33564 | -4/Zhirov | Entered Proximity Caves 33593 | -3/Proximity Caves | Spotted B-86 Titan 33610 | -3/Proximity Caves | Build established: Scavenger-Mutant 33680 | -3/Proximity Caves | Attracted the attention of an 0b10 outpost 33762 | -3/Proximity Caves | Attracted the attention of an 0b10 checkpoint 33782 | -3/Proximity Caves | Core integrity fell below 50% 33833 | -3/Proximity Caves | Released all parts (6) 33838 | -3/Proximity Caves | Core integrity fell below 20% 33860 | -3/Proximity Caves | Lost 12 parts (2p4n5u1w) 33867 | -3/Proximity Caves | Destroyed by P-80 Master with Gamma Rifle Last Messages --------------- 33780_ Seismic Detector destroyed. 33787_ System corrupted: Component data lost. 33792_ Acquired 5 matter. 33795_ Fusion Reactor destroyed. [Achievement: Z1$+NX3F=JRE3_ZNQR] 33802_ RMXB>U7CWGL137DN3WIN0UDUAGK4 D#CN9H 33807_ Deep Structural Scanner destroyed. 33821_ DMA>D#KJXO659GIG9VOGVXOIZ 5 33829_ Centrium Wheel destroyed. 33831_ Identified Cld. Nuclear Pulse Thruster. 33833_ Released Huge Storage Unit. 33833_ Released Adv. Signal Interpreter. 33833_ Released Core Analyzer. 33833_ Released Centrium Wheel. 33833_ Released Cld. Nuclear Pulse Thruster. 33833_ Extracted 34 energy. 33836_ Acquired Cld. Nuclear Pulse Thruster. 33839_ System corrupted: Matter fused (-5). 33840_ Acquired Cld. Nuclear Pulse Thruster. 33854_ JTTTF33V%68D,JV M E6 Map ----- +----------------------------------------------------+ | ???????????????????????????????????????????????? | | ???????????????????????????????????????????????? | | ???????????????????????????????????????????????? | | ???????????????????????????????????????????????? | | ???????????????????????????????????????????????? | | ???????????????????????????????????????????????? | | ???????????????????????????????????????????????? | | ???????????????????????????????????????????????? | | ???????????????????????????????????????????????? | | ???????????????????????????????????????????????? | | ???????????????????????????????????????????????? | | ???????????????????????????????????????????????? | | ???????????????????????????????????????????????? | | ???????????????????????????????????????????????? | | ???????????????????????????????????????????????? | | ???????????????????????????????????????????????? | | ???????????????????????????????????????????????? | | ???????????????????????????????????????????????? | | ?????#######???????????????????????????????????? | | ???### #???????????????????????????????????? | | ???# #???????###?????????????????????????? | | ???# #???????# #????????????????????????? | | ?### #???????# ####????????????????????? | | ?? ##???????# ##???????????????????? | | ? #?????????# #???????????????????? | | ? #?????????###@ ##??????????????????? | | ? ??# ########????# ##?????????????????? | | ? #??# ###### ###???????????????? | | ?= #??# ## #???????????????? | | #!!#?### #???????????????? | | !]!### ##??????????????? | | !]### ## #??????????????? | | !#?# " ## ##??????????????? | | ##?# " ## ##??????????????? | | #??# " ## #??????????????? | | #### " #### #??????????????? | | """ " #### ## #??????????????? | | # "" "" # ###p #??????????????? | | ## " "" ## #??????????????? | | ## "" # #??????????????? | | # "" #### p ##??????????????? | | # "" #??## #???????????????? | | # " #???#### ## ##??????????????? | | ???????##### #??????????????? | | ?????????## ##??????????????? | | ## ##### ###?##??????# #???????????????? | | #### #???? #?### #????## ##??????????????? | | ???? ???? ??# ###?# #??????????????? | | ???? ????????# ### #??????????????? | | ???? ????????# #??????????????? | +----------------------------------------------------+ Best States ------------- Heat Dissipation 82 Coolant Potential 80 Energy Generation 54 Energy Capacity 600 Matter Stores 300 Matter Capacity 300 Sight Range 22 Robot Scan Range 20 Terrain Scan Density 10 Power Amplification 30 Armor Coverage 600 Resistance: TH 30 Utility Shielding 90 Phase Shifting 5 Evasion (%) 64 Targeting Accuracy 8 Core Analysis 6 Recoil Reduction 4 Matter Filtering 50 Offensive Hacking 14 Defensive Hacking 12 Item Schematics ----------------- Combat Drone Bay | -6/Data Miner | Free Lgt. Regenerative Plating | -6/Data Miner | Free Cld. Gravmag System | -6/Data Miner | Free Imp. Thermal Defense Suite | -6/Data Miner | Free Hvy. Proton Missile Launcher | -6/Data Miner | Free Shield Leg | -6/Data Miner | Free Adv. Trap Scanner | -6/Data Miner | Free HERF Cannon | -6/Data Miner | Free Nuclear Pulse Array | -6/Data Miner | Free Lrn. Terrain Scanner | -6/Data Miner | Free Assault Drone Bay | -4/Zhirov | Free Exp. Heat Sink | -4/Zhirov | Free Exp. Optical Array | -4/Zhirov | Free Imp. Arc Thrower | -4/Zhirov | Free Robot Schematics ------------------ Y-64 Sentinel | -6/Data Miner | Free L-41 Fighter | -6/Data Miner | Free S-27 Virus | -6/Data Miner | Free B-60 Warrior | -6/Data Miner | Free A-15 Conveyor | -6/Data Miner | Free Fabricated ------------ Nothing Repaired ---------- Lgt. Treads | 1% | -8/Storage Studied --------- Autogun | -9/Materials | Hacked Imp. Light Cannon | -8/Materials | Hacked Lgt. Treads | -8/Materials | Hacked Antimatter Reactor | -4/Factory | Hacked Alien Tech Used ----------------- Integrated Dissipator Transdimensional Reconstructor Achievements -------------- Analysis Probe Tank Troublemaker Z1$+NX3F=JRE3_ZNQR Challenges ------------ None Game ------ Seed PrecisionLaserProcessor Manual? 0 Play Time 02:25:26 Cumulative 25.7 hours Start 2025.11.06 @ 21:32:45 End 2025.11.14 @ 18:23:21 Sessions 9 Manual Loads 0 Difficulty Rogue Special Mode None Game No. 14 Rogue 14 Adventurer 0 Explorer 0 Win Type - Total 1 Types 0/1/0/0/0/0/0/0/0/0 Lore% 15 Gallery% 32 Achievement% 40 Wizard Run 0 Options --------- Layout 1 ASCII 0 Keyboard 0 Movement Arrows Keybinds 0 Fullscreen 2 Font 20/Terminus Map View 55x45 Zoom Use 0% Tactical HUD 1 Map Filters NONE Filters NONE Steam 0 RUN: 728d59fe-141a-4a8f-90a2-dffb9e96a52d